Cogmind - Beta 9.3 *** ADVENTURER MODE // 2020.01.04 @ 14:04:36 // Winter2019/RPGLIKE Player: Rev Result: Destroyed by L-31 Rogue with Katana Performance ------------- Evolutions (2) 1000 Regions Visited (6) 1200 Robots Destroyed (58) 290 Value Destroyed (1369) 1369 Prototype IDs (8) 160 Alien Tech Used (0) 0 Bonus (676) 676 TOTAL SCORE: 4695 Bonus ------- High Alert Combat Kills 102 Follower Combat Kills 74 Entered Garrisons 200 Aligned with FarCom 300 Cogmind --------- Core Integrity 0/650 Matter 258/300 Energy 250/250 System Corruption 0% Temperature Cool (0) Movement Treading (145) Location -8/Garrison Parts ------- > --- POWER (2) -------- Ion Engine > --- PROPULSION (2) --- Advanced Treads Advanced Treads > --- UTILITY (6) ------ Sensor Array Improved Signal Interpreter Terrain Scanner Terrain Scan Processor Long-range Tractor Beam Trap Reconfigurator > --- WEAPON (4) ------- Enhanced Autogun Heavy Battle Rifle Improved Datajack Maul > --- INVENTORY (5) ---- High-capacity Matter Pod (200) Ion Cannon Rocket Launcher Peak State ------------ > --- POWER ------------ Ion Engine > --- PROPULSION ------- Advanced Treads Advanced Treads > --- UTILITY ---------- Sensor Array Improved Signal Interpreter Terrain Scanner Terrain Scan Processor Long-range Tractor Beam Trap Reconfigurator > --- WEAPON ----------- Enhanced Autogun Heavy Battle Rifle Improved Datajack Maul > --- INVENTORY -------- High-capacity Matter Pod Ion Cannon Rocket Launcher [Rating: 38] Favorites ----------- Power Ion Engine Engine Ion Engine Propulsion Aluminum Leg Treads Advanced Treads Leg Aluminum Leg Utility Sensor Array Device Sensor Array Processor Signal Interpreter Weapon Maul Energy Gun Medium Laser Ballistic Gun Heavy Battle Rifle Launcher Rocket Launcher Impact Weapon Maul Special Melee Weapon Improved Datajack Build | -11 -10 -10 -10 -9 -8 -8 ------- Run | Scr Mat Min Exi Min Mat Gar Slots Evolved 10 | 3 . 1 . 2 1 3 Power 1 | . . . . . . 1 Propulsion 1 | 1 . . . . . . Utility 5 | 1 . 1 . 1 1 1 Weapon 3 | 1 . . . 1 . 1 Parts Attached 33 | 5 8 3 3 4 8 2 Power 2 | 1 1 . . . . . Engine 2 | 1 1 . . . . . Core . | . . . . . . . Reactor . | . . . . . . . Propulsion 5 | 2 . . . . 3 . Treads 3 | . . . . . 3 . Leg 2 | 2 . . . . . . Wheel . | . . . . . . . Hover . | . . . . . . . Flight . | . . . . . . . Utility 16 | . 3 2 3 3 4 1 Device 13 | . 2 2 3 3 2 1 Storage . | . . . . . . . Processor 3 | . 1 . . . 2 . Hackware . | . . . . . . . Protection . | . . . . . . . Artifact . | . . . . . . . Weapon 10 | 2 4 1 . 1 1 1 Energy Gun 2 | 1 1 . . . . . Energy Cannon . | . . . . . . . Ballistic Gun 3 | 1 . . . 1 1 . Ballistic Cannon . | . . . . . . . Launcher 2 | . 1 1 . . . . Special Weapon . | . . . . . . . Impact Weapon 2 | . 2 . . . . . Slashing Weapon . | . . . . . . . Piercing Weapon . | . . . . . . . Special Melee Weapon 1 | . . . . . . 1 Unidentified Prototypes 4 | . . . 2 1 1 . Parts Lost . | . . . . . . . Power . | . . . . . . . Propulsion . | . . . . . . . Utility . | . . . . . . . Weapon . | . . . . . . . Highest Loss Streak . | . . . . . . . Average Slot Usage (%) 99 | . 97 100 99 99 100 92 Engine 11 | . 14 12 12 10 9 7 Treads 1 | . . . . . 9 14 Leg 21 | . 28 25 25 20 9 . Device 25 | . 20 24 24 30 31 28 Processor 10 | . 6 12 12 10 12 14 Ballistic Gun 3 | . . . . 7 11 14 Launcher 10 | . 12 12 12 10 7 . Impact Weapon 11 | . 14 12 12 10 9 7 Naked Turns . | . . . . . . . Heaviest Build 21 | 7 14 14 14 20 21 20 Greatest Support 54 | 20 20 20 20 30 54 54 Greatest Overweight (x) 1 | . . . . . 1 . Average Overweight (x) . | . . . . . . . Largest Inventory Capacity 5 | 4 4 4 4 4 5 5 Average Capacity 4 | 4 4 4 4 4 4 5 Most Carried 5 | 2 4 4 4 4 5 5 Average Carried 3 | 1 3 3 3 2 4 3 Final Capacity 5 | 4 4 4 4 4 5 5 Final Carried 5 | 2 4 4 4 2 5 3 Class Distribution -------------------- 64% | Mutant 31% | Assassin 3% | Hacker-Assassin Dominant Class ---------------- Mutant | -10/Materials Mutant | -10/Mines Mutant | -10/Exiles Assassin | -9/Mines Assassin | -8/Materials Hacker-Assassin | -8/Garrison Resources | -11 -10 -10 -10 -9 -8 -8 ----------- Run | Scr Mat Min Exi Min Mat Gar Matter Collected 1110 | 250 160 30 10 88 542 30 Remotely 323 | . . 30 . . 293 . Salvage Created 797 | . 124 34 . 69 570 . Parts 81 | . 17 3 . 6 54 1 Haulers Intercepted 1 | . . . . . 1 . Recyclers Shooed . | . . . . . . . Parts Field Recycled . | . . . . . . . Retrieved Matter . | . . . . . . . Parts Self-Destructed . | . . . . . . . Prevented . | . . . . . . . Kills | -11 -10 -10 -10 -9 -8 -8 ------- Run | Scr Mat Min Exi Min Mat Gar Combat Hostiles Destroyed 45 | . 8 5 . 6 25 1 Melee 3 | . . 2 . . . 1 Guns 12 | . . . . . 12 . AOE 26 | . 8 1 . 5 12 . Classes Destroyed 9 | . 3 . . . 5 1 Worker 2 | . . . . . 2 . Builder 3 | . . . . . 3 . Hauler 1 | . . . . . 1 . Operator 1 | . . . . . 1 . Watcher 6 | . 3 . . . 3 . Swarmer 26 | . 6 3 . 5 12 . Grunt 15 | . 2 2 . 1 10 . Duelist 1 | . . . . . . 1 Sentry 3 | . . . . . 3 . Best Kill Streak 14 | . 5 2 . 3 14 1 Combat Bots Only 9 | . 3 2 . 3 9 1 Max Kills in Single Turn 3 | . 2 1 . 3 2 1 Gunslinging 1 | . . . . . 1 . Exploded 3 | . 2 1 . 3 2 . Melee 1 | . . 1 . . . 1 Uniques/NPCs Destroyed . | . . . . . . . Combat | -11 -10 -10 -10 -9 -8 -8 -------- Run | Scr Mat Min Exi Min Mat Gar Damage Taken 1749 | . 131 287 . 185 560 586 Core 1399 | . 106 220 . 148 454 471 Absorbed by Shields . | . . . . . . . Redirected to Core 1116 | . 78 183 . 110 330 415 Core Remaining (%) 82 | 100 . . . 64 . . Volleys Fired 65 | . 8 1 . 4 45 7 Largest 2 | . 1 1 . 2 2 2 Hottest 66 | . 30 30 . 66 66 58 Shots Fired 111 | . 8 1 . 6 82 14 Gun 75 | . . . . 2 59 14 Cannon . | . . . . . . . Launcher 36 | . 8 1 . 4 23 . Special . | . . . . . . . Kinetic 75 | . . . . 2 59 14 Thermal . | . . . . . . . Explosive 36 | . 8 1 . 4 23 . Electromagnetic . | . . . . . . . Robot Hit Streak 11 | . 1 . . 1 11 8 Robot Miss Streak 6 | . . . . 2 6 1 Penetration Max . | . . . . . . . Secondary Targets 3 | . . . . . 3 . Max Gunslinging Chain 1 | . . . . . 1 . Shots Hit Robots 109 | . 2 13 . 7 61 26 Core Hits 76 | . 14 3 . 5 51 3 Critical Hits 1 | . . . . . 1 . Critical Kills 1 | . . . . . 1 . Critical Parts Destroyed . | . . . . . . . Melee Attacks 46 | . 1 17 . 6 9 13 Impact 41 | . 1 17 . 6 9 8 Slashing . | . . . . . . . Piercing . | . . . . . . . Sneak Attacks 4 | . 1 . . 1 1 1 Combat Hostiles 1 | . . . . . . 1 Follow-up Attacks . | . . . . . . . Damage Inflicted 4566 | . 502 406 . 651 2577 430 Guns 1132 | . . . . . 870 262 Cannons . | . . . . . . . Explosions 2337 | . 415 40 . 417 1465 . Melee 1097 | . 87 366 . 234 242 168 Ramming . | . . . . . . . Kinetic 1132 | . . . . . 870 262 Thermal . | . . . . . . . Explosive 2309 | . 387 40 . 417 1465 . Electromagnetic 28 | . 28 . . . . . Impact 1097 | . 87 366 . 234 242 168 Slashing . | . . . . . . . Piercing . | . . . . . . . Highest Corruption 1 | . 1 1 1 1 . . Average Corruption 1 | . 1 1 1 1 . . Corruption Purged . | . . . . . . . Effects 14 | . . 3 6 5 . . Message Errors 4 | . . . 2 2 . . Energy Discharges 3 | . . . . 3 . . Data Loss (minor) 7 | . . 3 4 . . . Overload Shots . | . . . . . . . Overflow Damage 363 | . 71 46 . 145 101 . Projectiles . | . . . . . . . Explosions 108 | . 4 . . 75 29 . Melee 255 | . 67 46 . 70 72 . Knockbacks 6 | . 1 . . 2 2 1 Impact 6 | . 1 . . 2 2 1 Kinetic . | . . . . . . . Secondary . | . . . . . . . Self-Inflicted Damage 151 | . 53 . . 11 87 . Shots 6 | . 2 . . 1 3 . Rammed . | . . . . . . . Targets Rammed . | . . . . . . . Kicked . | . . . . . . . Crushed . | . . . . . . . Highest Temperature 9 | . . . . . 9 . Average Temperature 9 | . . . . . 9 . Received Heat Transfer 426 | . 21 84 . 114 189 18 Siege Activations . | . . . . . . . Robots Corrupted . | . . . . . . . Combat Hostiles . | . . . . . . . Parts Fried 11 | . 3 4 . 2 2 . Impact Corruptions 15 | . 2 5 . 4 4 . Robots Melted . | . . . . . . . Combat Hostiles . | . . . . . . . Parts Melted . | . . . . . . . Heat Transferred . | . . . . . . . Parts Sabotaged . | . . . . . . . Parts Stolen . | . . . . . . . Parts Stripped . | . . . . . . . Power Chain Reactions . | . . . . . . . Missiles Intercepted . | . . . . . . . Alert | -11 -10 -10 -10 -9 -8 -8 ------- Run | Scr Mat Min Exi Min Mat Gar Peak Influence 696 | . 173 175 . 235 696 416 Average Influence 144 | . 84 38 . 85 426 399 Maximum Alert Level 2 | . . . . 1 2 2 Low Security (%) 82 | 100 100 100 . 97 28 . Level 1 5 | . . . . 2 5 84 Level 2 12 | . . . . . 66 15 Level 3 . | . . . . . . . Level 4 . | . . . . . . . Level 5 . | . . . . . . . High Security . | . . . . . . . Max Security . | . . . . . . . Squads Dispatched 3 | . . . . . 3 . Investigation . | . . . . . . . Extermination . | . . . . . . . Reinforcement 2 | . . . . . 2 . Assault . | . . . . . . . Garrison 1 | . . . . . 1 . Intercept . | . . . . . . . Construction Impeded 1 | . . . . . 1 . Haulers Reinforced . | . . . . . . . Stealth | -11 -10 -10 -10 -9 -8 -8 --------- Run | Scr Mat Min Exi Min Mat Gar Distress Signals 3 | . 1 . . . 2 . Communications Jammed . | . . . . . . . Distress Signals . | . . . . . . . Times Spotted 64 | . 10 6 . 9 33 6 Peak Tracking Total 6 | . 4 3 . 3 6 6 Tactical Retreats 2 | . . 1 . . 1 . Traps | -11 -10 -10 -10 -9 -8 -8 ------- Run | Scr Mat Min Exi Min Mat Gar Traps Triggered 2 | . 2 . . . . . Indirectly . | . . . . . . . Trap Hack Attempts . | . . . . . . . Triggered . | . . . . . . . Disarmed . | . . . . . . . Reprogrammed . | . . . . . . . Reused . | . . . . . . . Traps Extracted . | . . . . . . . Installed . | . . . . . . . Triggered . | . . . . . . . Machines | -11 -10 -10 -10 -9 -8 -8 ---------- Run | Scr Mat Min Exi Min Mat Gar Machines Disabled 10 | . 5 . . 2 3 . Max in Single Turn 2 | . 2 . . 1 1 . Machines Sabotaged . | . . . . . . . Garrisons Compromised . | . . . . . . . Overloaded Fab Kills . | . . . . . . . Fab Network Shutdowns . | . . . . . . . Hacking | -11 -10 -10 -10 -9 -8 -8 --------- Run | Scr Mat Min Exi Min Mat Gar Machines Accessed 14 | . 7 1 4 1 1 . Terminals 9 | . 7 1 . 1 . . Fabricators . | . . . . . . . Repair Stations . | . . . . . . . Recycling Units . | . . . . . . . Scanalyzers . | . . . . . . . Garrison Access 1 | . . . . . 1 . Total Hacks 65 | . 13 1 48 1 2 . Successful 63 | . 11 1 48 1 2 . Failed 2 | . 2 . . . . . Catastrophic . | . . . . . . . Database Lockouts . | . . . . . . . Manual 1 | . . . 1 . . . Terminals 15 | . 13 1 . 1 . . Fabricators . | . . . . . . . Repair Stations . | . . . . . . . Recycling Units . | . . . . . . . Scanalyzers . | . . . . . . . Garrison Access 2 | . . . . . 2 . Terminal Hacks 61 | . 11 1 48 1 . . Record 51 | . 3 . 48 . . . Robot Analysis 1 | . 1 . . . . . Prototype ID Bank 2 | . 2 . . . . . Alert Level 1 | . 1 . . . . . Locate Traps 1 | . 1 . . . . . Maintenance Status 2 | . 2 . . . . . Hauler Manifests 1 | . 1 . . . . . Zone Layout 2 | . . 1 . 1 . . Fabricator Hacks . | . . . . . . . Repair Station Hacks . | . . . . . . . Recycling Unit Hacks . | . . . . . . . Scanalyzer . | . . . . . . . Garrison Access Hacks 2 | . . . . . 2 . Unlock Access 1 | . . . . . 1 . Coupler Status 1 | . . . . . 1 . Unauthorized Hacks . | . . . . . . . Terminals . | . . . . . . . Fabricators . | . . . . . . . Repair Stations . | . . . . . . . Recycling Units . | . . . . . . . Scanalyzers . | . . . . . . . Garrison Access . | . . . . . . . Data Cores Recovered . | . . . . . . . Used . | . . . . . . . Hacking Detections 4 | . 2 . . 1 1 . Full Trace Events . | . . . . . . . Feedback Events . | . . . . . . . Feedback Blocked . | . . . . . . . Robot Schematics Acquired . | . . . . . . . Robots Built . | . . . . . . . Matter . | . . . . . . . Time . | . . . . . . . Total Robot Build Rating . | . . . . . . . Part Schematics Acquired . | . . . . . . . Parts Built . | . . . . . . . Matter . | . . . . . . . Time . | . . . . . . . Total Part Build Rating . | . . . . . . . Parts Repaired . | . . . . . . . Time . | . . . . . . . Parts Recycled . | . . . . . . . Recycled Matter . | . . . . . . . Retrieved Matter . | . . . . . . . Retrieved Components . | . . . . . . . Parts Scanalyzed . | . . . . . . . Part Schematics Acquired . | . . . . . . . Parts Damaged . | . . . . . . . Bothacking | -11 -10 -10 -10 -9 -8 -8 ------------ Run | Scr Mat Min Exi Min Mat Gar Used RIF Installer . | . . . . . . . Robots Hacked . | . . . . . . . Non-combat . | . . . . . . . Combat . | . . . . . . . Robot Hacks Applied . | . . . . . . . Relay Couplers Released . | . . . . . . . Robots Rewired . | . . . . . . . Allies Hacked . | . . . . . . . Hacks Repelled . | . . . . . . . Allies | -11 -10 -10 -10 -9 -8 -8 -------- Run | Scr Mat Min Exi Min Mat Gar Total Allies 1 | . . . . 1 . . Largest Group 1 | . . . . 1 1 . Highest-Rated Group 31 | . . . . 31 31 . Highest-Rated Ally 31 | . . . . 31 31 . Total Orders . | . . . . . . . Ally Attacks 17 | . . . . 9 8 . Total Damage 193 | . . . . 107 86 . Kills 4 | . . . . 3 1 . Allies Corrupted . | . . . . . . . Allies Melted . | . . . . . . . Intel | -11 -10 -10 -10 -9 -8 -8 ------- Run | Scr Mat Min Exi Min Mat Gar Robot Analysis Total 1 | . 1 . . . . . Derelict Logs Recovered 3 | . . 2 . 1 . . Drone Launches 1 | . . . 1 . . . Drone Recoveries . | . . . . . . . Exploration | -11 -10 -10 -10 -9 -8 -8 ------------- Run | Scr Mat Min Exi Min Mat Gar Turns Passed 3774 | 59 795 882 708 653 534 143 Spaces Moved 2669 | 44 608 654 584 469 253 57 Core 4 | 4 . . . . . . Treads 163 | . . . . . 106 57 Legs 2502 | 40 608 654 584 469 147 . Wheels . | . . . . . . . Hover . | . . . . . . . Flight . | . . . . . . . Fastest Speed 50 | 50 120 120 120 120 120 145 Average Speed 121 | 113 120 120 120 120 131 145 Slowest Speed 150 | 120 120 120 120 120 150 145 Overloaded Moves . | . . . . . . . Propulsion Burnouts . | . . . . . . . Robots Hopped . | . . . . . . . Cave-ins Triggered . | . . . . . . . Exploration Rate (%) 62 | 3 91 99 93 99 38 12 Regions Visited 6 Branch Regions 3 Pre-discovered Areas 1 | . . . 1 . . . Known Exits Taken 5 | . 1 1 1 1 1 . Unknown Exits Taken 1 | 1 . . . . . . Scrap Searched 3 | . . 1 . 2 . . Spaces Dug . | . . . . . . . Terrain Destroyed 262 | . 34 11 . 52 165 . Melee . | . . . . . . . Projectile 4 | . . . . . 4 . AOE 258 | . 34 11 . 52 161 . Actions | -11 -10 -10 -10 -9 -8 -8 --------- Run | Scr Mat Min Exi Min Mat Gar Total 3009 | 50 663 718 591 541 359 87 Wait 119 | . 21 26 . 56 8 8 Move 2664 | 43 607 653 583 468 253 57 Hop . | . . . . . . . Pick Up 17 | 2 5 3 1 . 6 . Fast Attach 18 | 5 5 . 3 2 3 . Attach 7 | . 1 1 . 2 1 2 Detach 1 | . 1 . . . . . Swap 8 | . 2 2 . . 4 . Drop 21 | . 6 4 4 2 5 . Fire 65 | . 8 1 . 4 45 7 Melee 46 | . 1 17 . 6 9 13 Ram . | . . . . . . . Kick . | . . . . . . . Crush . | . . . . . . . Escape Stasis . | . . . . . . . Rewire . | . . . . . . . Trap . | . . . . . . . Miscellaneous 43 | . 6 11 . 1 25 . Route ------- -11/Scrapyard -10/Materials (discovered 4 exits: *Mat x2 / *Min x2) -10/Mines (discovered 3 exits: *Mat x2 / *Exi) -10/Exiles (discovered 2 exits: *Min x2) -9/Mines (discovered 2 exits: *Mat x2) -8/Materials (discovered 3 exits: [*Fac x2] / Gar) -8/Garrison History --------- Turn | Location | Event 1 | -11/Scrapyard | Upgraded with Propulsion slot (x1) 1 | -11/Scrapyard | Upgraded with Utility slot (x1) 1 | -11/Scrapyard | Upgraded with Weapon slot (x1) 16 | -11/Scrapyard | Discovered new exit (range 16) 60 | -11/Scrapyard | Entered Materials 327 | -10/Materials | Build established: Mutant 431 | -10/Materials | Discovered new exit (range 8) 516 | -10/Materials | Discovered new exit (range 11) 531 | -10/Materials | Identified exit to Materials 677 | -10/Materials | Discovered exit to Materials (range 16) 768 | -10/Materials | Discovered new exit (range 15) 789 | -10/Materials | Identified exit to Mines 855 | -10/Materials | Entered Mines 857 | -10/Mines | Reached level 2 860 | -10/Mines | Upgraded with Utility slot (x1) 904 | -10/Mines | Discovered exit to Materials (range 12) 940 | -10/Mines | Found a hidden stash of uninstalled traps 971 | -10/Mines | Identified exit to Exiles 971 | -10/Mines | Discovered exit to Materials (range 4) 1256 | -10/Mines | A weapon hastily lodged in a ceiling crevice suddenly fell to the ground 1331 | -10/Mines | Received a Rocket Launcher from a helpful Derelict 1627 | -10/Mines | Learned Materials terminal intel 1730 | -10/Mines | Deemed a non-threat by the Exiles lab entrance 1737 | -10/Mines | Entered Exiles 1766 | -10/Exiles | Discovered new exit (range 15) 1782 | -10/Exiles | Identified exit to Mines 1808 | -10/Exiles | Met 8R-AWN 1831 | -10/Exiles | Met EX-HEX 1980 | -10/Exiles | Met EX-DEC 2026 | -10/Exiles | Visited The Gauntlet 2193 | -10/Exiles | Met EX-BIN 2209 | -10/Exiles | Aligned with FarCom system 2211 | -10/Exiles | Given EX-Vault access code 2278 | -10/Exiles | Opened EX-Vault 2288 | -10/Exiles | Found Prototype Device 2288 | -10/Exiles | Identified Trap Reconfigurator 2297 | -10/Exiles | Found Prototype Device 2297 | -10/Exiles | Identified Supersonic Drone Bay 2334 | -10/Exiles | Warned to stay clear of 0b10 Research branches 2374 | -10/Exiles | Learned location of Zion (-7) 2428 | -10/Exiles | Discovered exit to Mines (range 15) 2445 | -10/Exiles | Left Exiles lab with Trap Reconfigurator 2445 | -10/Exiles | Entered Mines 2445 | -9/Mines | Accompanied by 1 ally 2447 | -9/Mines | Reached level 3 2451 | -9/Mines | Upgraded with Utility slot (x1) 2472 | -9/Mines | Met a Derelict bent on vengeance 2490 | -9/Mines | Discovered new exit (range 12) 2495 | -9/Mines | Discovered new exit (range 57) 2497 | -9/Mines | Escorted by a lone wolf Derelict 2511 | -9/Mines | Identified exit to Materials 2607 | -9/Mines | Reached level 4 2616 | -9/Mines | Upgraded with Weapon slot (x1) 2751 | -9/Mines | Build established: Assassin 2765 | -9/Mines | Learned Materials garrison access intel 2793 | -9/Mines | Found a damaged Exp. Sensor Array with a note attached 2796 | -9/Mines | Found Prototype Device 2796 | -9/Mines | Identified Exp. Sensor Array 3098 | -9/Mines | Entered Materials 3098 | -8/Materials | Accompanied by 1 ally 3099 | -8/Materials | Loaded intel: 12 terminal locations 3100 | -8/Materials | Loaded intel: 1 garrison access location 3100 | -8/Materials | Reached level 5 3100 | -8/Materials | Reached level 6 3199 | -8/Materials | Upgraded with Utility slot (x1) 3243 | -8/Materials | Reached level 7 3256 | -8/Materials | Core integrity fell below 50% 3300 | -8/Materials | Destroyed 9 combat bots 3333 | -8/Materials | Discovered new exit (range 17) 3379 | -8/Materials | Reached level 8 3538 | -8/Materials | Garrison activated, responded to threat 3555 | -8/Materials | Discovered new exit (range 17) 3593 | -8/Materials | Destroyed 8 combat bots 3632 | -8/Materials | Identified exit to Garrison 3632 | -8/Materials | Entered Garrison 3632 | -8/Garrison | Upgraded with Utility slot (x1) 3632 | -8/Garrison | Upgraded with Weapon slot (x1) 3634 | -8/Garrison | Reached level 9 3634 | -8/Garrison | Upgraded with Power slot (x1) 3763 | -8/Garrison | Core integrity fell below 20% 3775 | -8/Garrison | Destroyed by L-31 Rogue with Katana Last Messages --------------- Upgraded: Hack Attack % (+5) Sneak attack on D-53 Grenadier. D-53 Grenadier system offline. Sneak attack on D-53 Grenadier. D-53 Grenadier system offline. Sneak attack on D-53 Grenadier. D-53 Grenadier system offline. Sneak attack on D-53 Grenadier. D-53 Grenadier system offline. Extracted 30 matter. Sneak attack on X-62 Marksman. X-62 Marksman system offline. L-31 Rogue springs to life. X-62 Marksman springs to life. Penetrated by Slug. X-62 Marksman springs to life. Penetrated by Slug. L-31 Rogue springs to life. L-31 Rogue knocked back. L-31 Rogue destroyed. Map ----- +----------------------------------------------------+ | ??????????#####?###?######?#?##?#?#???????? | | ????? ?###?##?#?##### ##??##?##?##?????? | | ????? ?#?############ #####?###????????? | | ????"?#?############# ###?####?#???????? | | ???#? ??############# #######?#??#?#?????? | | #??#? ####?########## #####?#######??????? | | ??##??#####?##?###### #####?#?####??????? | | ???## ############### #############?????? | | ? # #?######### ###########???????? | | ?###?#### ########### #########?##?#????? | | ??####### ##### !!### #############?#????? | | #?#?##### ##### !!### ##############?????? | | #?#####?# ##### ##### ############?##????? | | ######### ##### ##### ############?#?????? | | #############?##???? | | + #########?###???? | | ######## ############### ###########?????? | | #?### ## ############### ############????? | | ???? ?# ############### #############???? | | ##?# ### ############### #############???? | | ???#?#?# ############### ###?##########??? | | #??? ### ############### ##########?##???? | | ?????### ############### #######?#####???? | | ##?#???# ############### #xx##########???? | | ?? ?? ? #?#############/#l ###?######???? | | ???? ? @ll ############?? | | ???????#################### #?####?##??? | | ?????#????#?############### ########???? | | ???????????#############################??? | | ????????????###?########?#?############???? | | ????????????###########################???? | | ??????????????##############?#########????? | | ?????????????###########???#########?#????? | | ??????????????######?####?##########??????? | | ???????????????##?###?##############??????? | | ?????????????????###################??????? | | ?????????????????#################????????? | | ???????????????????##??#?##?#?###?????????? | | ?????????????????????#####?#####??????????? | | ?????????????????????????#????????????????? | | ??????????????????????????????????????????? | | ??????????????????????????????????????????? | | ??????????????????????????????????????????? | | ??????????????????????????????????????????? | | ??????????????????????????????????????????? | | ??????????????????????????????????????????? | | ??????????????????????????????????????????? | | ??????????????????????????????????????????? | | ??????????????????????????????????????????? | | ??????????????????????????????????????????? | +----------------------------------------------------+ Best States ------------- Heat Dissipation 65 Energy Generation 20 Energy Capacity 250 Matter Stores 300 Matter Capacity 300 Sight Range 17 Robot Scan Range 12 Terrain Scan Range 14 Terrain Scan Density 385 Resistance: KI 30 Resistance: TH 25 Resistance: EX 25 Resistance: EM 20 Resistance: I 20 Resistance: S 20 Resistance: P 20 Evasion (%) 40 Recoil Reduction 2 Offensive Hacking 20 Item Schematics ----------------- None Robot Schematics ------------------ None Fabricated ------------ Nothing Alien Tech Used ----------------- None Achievements -------------- None Challenges ------------ None RPGLIKE | -11 -10 -10 -10 -9 -8 -8 --------- Run | Scr Mat Min Exi Min Mat Gar Levels Raised 8 | . . 1 . 2 4 1 XP Earned 16579 | 4000 1280 1100 350 2249 6895 705 XP Spent 15995 | 4000 . 1500 . 2975 3010 4510 Upgrades 35 | 7 . 6 . 8 5 9 Power Slot 1 | . . . . . . 1 Propulsion Slot 1 | 1 . . . . . . Utility Slot 5 | 1 . 1 . 1 1 1 Weapon Slot 3 | 1 . . . 1 . 1 Core Integrity 1 | . . . . 1 . . Heat Dissipation 3 | . . 1 . . 2 . Energy Generation 2 | . . . . 1 . 1 Mass Support 2 | . . . . 2 . . Inventory Capacity 5 | 4 . . . . 1 . Sight Range 1 | . . . . 1 . . Sensor Range 1 | . . . . . . 1 Terrain Scan Density 3 | . . . . . . 3 Hack Attack % 2 | . . . . . 1 1 KI Resistance % 2 | . . 1 . 1 . . TH Resistance % 1 | . . 1 . . . . EX Resistance % 1 | . . 1 . . . . KI Damage % 1 | . . 1 . . . . Protomatter Created 520 | . 54 100 . 6 316 44 Integrity Restored 838 | . 100 219 . 18 501 . Core 745 | . 52 174 . 18 501 . Parts 93 | . 48 45 . . . . Protomatter Decayed 115 | . 9 25 . 31 50 . Game ------ Seed CentriumResetInsulator Manual? 0 Play Time 00:46:54 Cumulative 27.6 hours Start 2020.01.04 @ 13:17:58 End 2020.01.04 @ 14:04:36 Sessions 1 Manual Loads 0 Difficulty Adventurer Special Mode Winter2019/RPGLIKE Game No. 24 Rogue 12 Adventurer 12 Explorer 0 Win Type - Total 0 Types 0/0/0/0/0/0/0 Lore% 29 Gallery% 29 Achievement% 28 Wizard Run 0 Options --------- ASCII 0 Keyboard 0 Movement Mouse Keybinds 0 Fullscreen 1 Font 18/SmallcapsGlow Map View 76x50 Tactical HUD 0 Map Filters NONE Filters NONE Steam 1 RUN: e1269795-816a-4cde-ab1b-d3daaaed6bbc